[Event "Titled Tuesday Blitz August 08 Late 2023"]
[White "Goltsev, Dmitry"]
[Black "Mickiewicz, Piotr"]
[WhiteFideId "24176710"]
[BlackFideId "1114891"]
[WhiteElo "2626"]
[BlackElo "2496"]
[Result "1-0"]
[Round "6"]
[TimeControl "180+1"]
[Date "2023.08.08"]
[WhiteClock "0:00:06"]
[BlackClock "0:00:01"]
[Board "81"]

1. e4 {[%clk 0:02:59]}  c5 {[%clk 0:03:00]} 2. Nf3 {[%clk 0:02:59]}  d6 {[%clk 0:03:01]} 3. d4 {[%clk 0:02:58]}  cxd4 {[%clk 0:03:02]} 4. Nxd4 {[%clk 0:02:59]}  Nf6 {[%clk 0:03:02]} 5. Nc3 {[%clk 0:02:59]}  a6 {[%clk 0:03:03]} 6. Be2 {[%clk 0:02:59]}  e6 {[%clk 0:03:02]} 7. O-O {[%clk 0:02:58]}  Be7 {[%clk 0:03:03]} 8. f4 {[%clk 0:02:59]}  Qc7 {[%clk 0:03:03]} 9. Be3 {[%clk 0:02:59]}  b5 {[%clk 0:03:02]} 10. Bf3 {[%clk 0:02:59]}  Bb7 {[%clk 0:02:57]} 11. a3 {[%clk 0:02:58]}  Nbd7 {[%clk 0:02:56]} 12. Re1 {[%clk 0:02:58]}  Rc8 {[%clk 0:02:49]} 13. Bf2 {[%clk 0:02:57]}  Qb8 {[%clk 0:02:48]} 14. Qd2 {[%clk 0:02:56]}  O-O {[%clk 0:02:44]} 15. g4 {[%clk 0:02:55]}  Nb6 {[%clk 0:02:38]} 16. b3 {[%clk 0:02:44]}  Nfd7 {[%clk 0:02:36]} 17. f5 {[%clk 0:02:40]}  e5 {[%clk 0:02:13]} 18. Nde2 {[%clk 0:02:39]}  Qa8 {[%clk 0:02:06]} 19. g5 {[%clk 0:02:34]}  Rfe8 {[%clk 0:01:59]} 20. Kh1 {[%clk 0:02:22]}  Bf8 {[%clk 0:01:58]} 21. g6 {[%clk 0:02:16]}  Nf6 {[%clk 0:01:54]} 22. Bxb6 {[%clk 0:02:14]}  Nxe4 {[%clk 0:01:51]} 23. Nxe4 {[%clk 0:02:07]}  Bxe4 {[%clk 0:01:52]} 24. gxf7+ {[%clk 0:02:06]}  Kxf7 {[%clk 0:01:50]} 25. Bxe4 {[%clk 0:01:59]}  Qxe4+ {[%clk 0:01:51]} 26. Kg1 {[%clk 0:01:59]}  Rxc2 {[%clk 0:01:43]} 27. Ng3 {[%clk 0:01:51]}  Qc6 {[%clk 0:01:33]} 28. Qf2 {[%clk 0:00:50]}  Rxf2 {[%clk 0:01:31]} 29. Bxf2 {[%clk 0:00:51]}  d5 {[%clk 0:01:26]} 30. Rac1 {[%clk 0:00:50]}  Qb7 {[%clk 0:01:20]} 31. b4 {[%clk 0:00:47]}  Bd6 {[%clk 0:01:02]} 32. Nh5 {[%clk 0:00:35]}  Rc8 {[%clk 0:00:59]} 33. Rcd1 {[%clk 0:00:30]}  Rc2 {[%clk 0:00:56]} 34. Rd3 {[%clk 0:00:25]}  d4 {[%clk 0:00:55]} 35. Ng3 {[%clk 0:00:20]}  Qc6 {[%clk 0:00:47]} 36. Ne4 {[%clk 0:00:18]}  Be7 {[%clk 0:00:47]} 37. Rdd1 {[%clk 0:00:14]}  Qc4 {[%clk 0:00:37]} 38. Bg3 {[%clk 0:00:13]}  Qd5 {[%clk 0:00:28]} 39. Bxe5 {[%clk 0:00:11]}  d3 {[%clk 0:00:23]} 40. Bg3 {[%clk 0:00:08]}  h5 {[%clk 0:00:19]} 41. Re3 {[%clk 0:00:07]}  h4 {[%clk 0:00:19]} 42. Rdxd3 {[%clk 0:00:06]}  Qc4 {[%clk 0:00:13]} 43. Bf2 {[%clk 0:00:06]}  Rc1+ {[%clk 0:00:07]} 44. Kg2 {[%clk 0:00:06]}  Qc2 {[%clk 0:00:07]} 45. Rd2 {[%clk 0:00:06]}  Qb1 {[%clk 0:00:07]} 46. Nc3 {[%clk 0:00:03]}  Rxc3 {[%clk 0:00:05]} 47. Rxc3 {[%clk 0:00:03]}  Qe4+ {[%clk 0:00:05]} 48. Kg1 {[%clk 0:00:03]}  h3 {[%clk 0:00:05]} 49. Bd4 {[%clk 0:00:02]}  Qg4+ {[%clk 0:00:04]} 50. Rg3 {[%clk 0:00:02]}  Qe4 {[%clk 0:00:03]} 51. Be3 {[%clk 0:00:02]}  Bf6 {[%clk 0:00:03]} 52. Rxh3 {[%clk 0:00:02]}  Ke8 {[%clk 0:00:03]} 53. Rg3 {[%clk 0:00:03]}  Kf7 {[%clk 0:00:03]} 54. Kf2 {[%clk 0:00:04]}  Qb1 {[%clk 0:00:02]} 55. Kg2 {[%clk 0:00:03]}  Qxf5 {[%clk 0:00:03]} 56. Rf3 {[%clk 0:00:03]}  Qe4 {[%clk 0:00:04]} 57. Bf2 {[%clk 0:00:03]}  a5 {[%clk 0:00:03]} 58. Rd7+ {[%clk 0:00:03]}  Ke6 {[%clk 0:00:03]} 59. Rd3 {[%clk 0:00:04]}  axb4 {[%clk 0:00:03]} 60. Re3 {[%clk 0:00:04]}  Qxe3 {[%clk 0:00:03]} 61. Rxe3+ {[%clk 0:00:04]}  Kd5 {[%clk 0:00:04]} 62. axb4 {[%clk 0:00:05]}  Bd4 {[%clk 0:00:04]} 63. Rd3 {[%clk 0:00:05]}  Kc4 {[%clk 0:00:05]} 64. Rxd4+ {[%clk 0:00:06]}  Kc3 {[%clk 0:00:01]} 65. Rg4 {[%clk 0:00:06]} 1-0


[Site "https://www.chess.com"]

[Event "Titled Tuesday Blitz August 08 Late 2023"]
[White "Delorme, Axel"]
[Black "Erzhanov, Arman"]
[WhiteFideId "632023"]
[BlackFideId "4138821"]
[WhiteElo "2465"]
[BlackElo "2608"]
[Result "1-0"]
[Round "6"]
[TimeControl "180+1"]
[Date "2023.08.08"]
[WhiteClock "0:01:00"]
[BlackClock "0:01:01"]
[Board "83"]

1. e4 {[%clk 0:03:00]}  d6 {[%clk 0:02:59]} 2. d4 {[%clk 0:03:00]}  Nf6 {[%clk 0:02:59]} 3. Nc3 {[%clk 0:03:01]}  c6 {[%clk 0:03:00]} 4. Be3 {[%clk 0:02:59]}  e5 {[%clk 0:02:59]} 5. Nf3 {[%clk 0:02:58]}  Nbd7 {[%clk 0:03:00]} 6. h3 {[%clk 0:02:58]}  b5 {[%clk 0:03:00]} 7. Bd3 {[%clk 0:02:55]}  b4 {[%clk 0:02:58]} 8. Ne2 {[%clk 0:02:54]}  Be7 {[%clk 0:02:56]} 9. O-O {[%clk 0:02:51]}  O-O {[%clk 0:02:55]} 10. c3 {[%clk 0:02:49]}  a5 {[%clk 0:02:52]} 11. a3 {[%clk 0:02:40]}  bxc3 {[%clk 0:02:45]} 12. bxc3 {[%clk 0:02:37]}  Re8 {[%clk 0:02:43]} 13. a4 {[%clk 0:02:36]}  Qc7 {[%clk 0:02:41]} 14. Rb1 {[%clk 0:02:36]}  Bf8 {[%clk 0:02:40]} 15. Ng3 {[%clk 0:02:35]}  g6 {[%clk 0:02:39]} 16. Qb3 {[%clk 0:02:27]}  h5 {[%clk 0:02:15]} 17. Ng5 {[%clk 0:02:26]}  Re7 {[%clk 0:02:13]} 18. f4 {[%clk 0:02:23]}  Bg7 {[%clk 0:02:01]} 19. fxe5 {[%clk 0:02:12]}  dxe5 {[%clk 0:02:00]} 20. Bc4 {[%clk 0:02:13]}  Nb6 {[%clk 0:01:46]} 21. Qxb6 {[%clk 0:02:10]}  Qxb6 {[%clk 0:01:45]} 22. Rxb6 {[%clk 0:02:11]}  h4 {[%clk 0:01:40]} 23. Ne2 {[%clk 0:02:05]}  Be6 {[%clk 0:01:38]} 24. Bxe6 {[%clk 0:01:45]}  fxe6 {[%clk 0:01:38]} 25. dxe5 {[%clk 0:01:44]}  Nd7 {[%clk 0:01:34]} 26. Rxc6 {[%clk 0:01:40]}  Nxe5 {[%clk 0:01:34]} 27. Rxe6 {[%clk 0:01:37]}  Rxe6 {[%clk 0:01:27]} 28. Nxe6 {[%clk 0:01:34]}  Bh8 {[%clk 0:01:27]} 29. Bd4 {[%clk 0:01:32]}  Re8 {[%clk 0:01:25]} 30. N2f4 {[%clk 0:01:09]}  Bf6 {[%clk 0:01:09]} 31. Nd5 {[%clk 0:01:03]}  Bh8 {[%clk 0:01:06]} 32. Nec7 {[%clk 0:01:01]}  Rc8 {[%clk 0:01:01]} 33. Ne7+ {[%clk 0:01:00]} 1-0


[Site "https://www.chess.com"]

[Event "Titled Tuesday Blitz August 08 Late 2023"]
[White "Prithu Gupta"]
[Black "Di Berardino, Diego Rafael"]
[WhiteFideId "46618546"]
[BlackFideId "2105446"]
[WhiteElo "2454"]
[BlackElo "2607"]
[Result "1-0"]
[Round "6"]
[TimeControl "180+1"]
[Date "2023.08.08"]
[WhiteClock "0:00:09"]
[BlackClock "0:00:00"]
[Board "84"]

1. c4 {[%clk 0:02:56]}  g6 {[%clk 0:02:56]} 2. Nc3 {[%clk 0:02:55]}  Bg7 {[%clk 0:02:56]} 3. g3 {[%clk 0:02:56]}  c5 {[%clk 0:02:54]} 4. Bg2 {[%clk 0:02:56]}  Nc6 {[%clk 0:02:54]} 5. e4 {[%clk 0:02:56]}  e6 {[%clk 0:02:54]} 6. Nge2 {[%clk 0:02:56]}  Nge7 {[%clk 0:02:53]} 7. O-O {[%clk 0:02:57]}  d6 {[%clk 0:02:53]} 8. d3 {[%clk 0:02:56]}  O-O {[%clk 0:02:53]} 9. Be3 {[%clk 0:02:56]}  Nd4 {[%clk 0:02:51]} 10. Rb1 {[%clk 0:02:53]}  b6 {[%clk 0:02:44]} 11. b4 {[%clk 0:02:51]}  Bb7 {[%clk 0:02:42]} 12. f4 {[%clk 0:02:50]}  Qd7 {[%clk 0:02:41]} 13. Qd2 {[%clk 0:02:47]}  Rad8 {[%clk 0:02:36]} 14. b5 {[%clk 0:02:30]}  d5 {[%clk 0:01:54]} 15. e5 {[%clk 0:02:13]}  dxc4 {[%clk 0:01:43]} 16. dxc4 {[%clk 0:02:11]}  Bxg2 {[%clk 0:01:42]} 17. Kxg2 {[%clk 0:02:08]}  Qb7+ {[%clk 0:01:42]} 18. Kh3 {[%clk 0:02:06]}  Nef5 {[%clk 0:00:57]} 19. Bg1 {[%clk 0:01:12]}  f6 {[%clk 0:00:49]} 20. exf6 {[%clk 0:01:06]}  Bxf6 {[%clk 0:00:46]} 21. Nxd4 {[%clk 0:01:03]}  cxd4 {[%clk 0:00:43]} 22. Nd1 {[%clk 0:01:02]}  Qe4 {[%clk 0:00:35]} 23. Nf2 {[%clk 0:01:00]}  Qe3 {[%clk 0:00:20]} 24. Qxe3 {[%clk 0:00:56]}  dxe3 {[%clk 0:00:21]} 25. Ng4 {[%clk 0:00:55]}  Bd4 {[%clk 0:00:19]} 26. Rfe1 {[%clk 0:00:55]}  Rc8 {[%clk 0:00:11]} 27. Rbc1 {[%clk 0:00:52]}  Rfd8 {[%clk 0:00:09]} 28. Nxe3 {[%clk 0:00:51]}  Bxe3 {[%clk 0:00:09]} 29. Bxe3 {[%clk 0:00:52]}  Rd3 {[%clk 0:00:08]} 30. Bg1 {[%clk 0:00:47]}  Rd2 {[%clk 0:00:06]} 31. c5 {[%clk 0:00:40]}  bxc5 {[%clk 0:00:04]} 32. Rxe6 {[%clk 0:00:25]}  c4 {[%clk 0:00:03]} 33. Bxa7 {[%clk 0:00:21]}  Rxa2 {[%clk 0:00:03]} 34. b6 {[%clk 0:00:17]}  Rb2 {[%clk 0:00:03]} 35. Re4 {[%clk 0:00:11]}  c3 {[%clk 0:00:03]} 36. g4 {[%clk 0:00:10]}  Nd6 {[%clk 0:00:02]} 37. Re3 {[%clk 0:00:10]}  Nb7 {[%clk 0:00:01]} 38. Rexc3 {[%clk 0:00:09]}  Rd8 {[%clk 0:00:00]} 39. Rc8 {[%clk 0:00:09]} 1-0


[Site "https://www.chess.com"]

[Event "Titled Tuesday Blitz August 08 Late 2023"]
[White "Swicarz, Maciej"]
[Black "Ozates, Tuna"]
[WhiteFideId "1113585"]
[BlackFideId "6354521"]
[WhiteElo "2439"]
[BlackElo "2607"]
[Result "0-1"]
[Round "6"]
[TimeControl "180+1"]
[Date "2023.08.08"]
[WhiteClock "0:01:15"]
[BlackClock "0:01:46"]
[Board "85"]

1. c4 {[%clk 0:03:00]}  e6 {[%clk 0:02:59]} 2. Nc3 {[%clk 0:03:00]}  d5 {[%clk 0:03:00]} 3. d4 {[%clk 0:02:59]}  Nf6 {[%clk 0:03:00]} 4. Bg5 {[%clk 0:02:59]}  Nbd7 {[%clk 0:02:59]} 5. e3 {[%clk 0:02:59]}  c6 {[%clk 0:02:57]} 6. cxd5 {[%clk 0:02:55]}  exd5 {[%clk 0:02:57]} 7. Bd3 {[%clk 0:02:55]}  a6 {[%clk 0:02:54]} 8. Nge2 {[%clk 0:02:55]}  Bd6 {[%clk 0:02:54]} 9. Bf4 {[%clk 0:02:53]}  Qc7 {[%clk 0:02:53]} 10. O-O {[%clk 0:02:50]}  h6 {[%clk 0:02:54]} 11. Qc2 {[%clk 0:02:47]}  O-O {[%clk 0:02:53]} 12. Rfc1 {[%clk 0:02:46]}  Re8 {[%clk 0:02:52]} 13. Rab1 {[%clk 0:02:45]}  Nf8 {[%clk 0:02:42]} 14. b4 {[%clk 0:02:41]}  Ne6 {[%clk 0:02:42]} 15. Bg3 {[%clk 0:02:37]}  Ng5 {[%clk 0:02:37]} 16. b5 {[%clk 0:02:31]}  Bxg3 {[%clk 0:02:34]} 17. Nxg3 {[%clk 0:02:29]}  axb5 {[%clk 0:02:35]} 18. Nxb5 {[%clk 0:02:23]}  Qe7 {[%clk 0:02:30]} 19. Nc3 {[%clk 0:02:21]}  g6 {[%clk 0:02:20]} 20. Rb3 {[%clk 0:02:16]}  Kg7 {[%clk 0:02:15]} 21. Rcb1 {[%clk 0:02:11]}  h5 {[%clk 0:02:14]} 22. Nge2 {[%clk 0:02:00]}  h4 {[%clk 0:02:12]} 23. h3 {[%clk 0:01:58]}  Bxh3 {[%clk 0:02:01]} 24. gxh3 {[%clk 0:01:58]}  Nxh3+ {[%clk 0:01:55]} 25. Kf1 {[%clk 0:01:58]}  Nxf2 {[%clk 0:01:53]} 26. Kxf2 {[%clk 0:01:54]}  Qxe3+ {[%clk 0:01:49]} 27. Ke1 {[%clk 0:01:52]}  h3 {[%clk 0:01:47]} 28. Qd2 {[%clk 0:01:15]}  Qg1# {[%clk 0:01:46]} 0-1


[Site "https://www.chess.com"]

[Event "Titled Tuesday Blitz August 08 Late 2023"]
[White "Ingunza Curro, Andres"]
[Black "Pert, Richard G"]
[WhiteFideId "24526371"]
[BlackFideId "404748"]
[WhiteElo "2438"]
[BlackElo "2586"]
[Result "0-1"]
[Round "6"]
[TimeControl "180+1"]
[Date "2023.08.08"]
[WhiteClock "0:00:09"]
[BlackClock "0:00:31"]
[Board "87"]

1. d4 {[%clk 0:02:55]}  Nf6 {[%clk 0:02:59]} 2. Nf3 {[%clk 0:02:55]}  c5 {[%clk 0:02:58]} 3. dxc5 {[%clk 0:02:55]}  e6 {[%clk 0:02:50]} 4. a3 {[%clk 0:02:55]}  Bxc5 {[%clk 0:02:49]} 5. b4 {[%clk 0:02:55]}  Bb6 {[%clk 0:02:44]} 6. e3 {[%clk 0:02:54]}  d5 {[%clk 0:02:44]} 7. Bb2 {[%clk 0:02:54]}  O-O {[%clk 0:02:43]} 8. Nbd2 {[%clk 0:02:54]}  a5 {[%clk 0:02:41]} 9. c4 {[%clk 0:02:52]}  axb4 {[%clk 0:02:39]} 10. axb4 {[%clk 0:02:53]}  Rxa1 {[%clk 0:02:38]} 11. Qxa1 {[%clk 0:02:54]}  Qe7 {[%clk 0:02:26]} 12. c5 {[%clk 0:02:48]}  Bc7 {[%clk 0:02:26]} 13. Bd3 {[%clk 0:02:46]}  Nc6 {[%clk 0:02:23]} 14. Qa3 {[%clk 0:02:16]}  e5 {[%clk 0:02:20]} 15. b5 {[%clk 0:02:14]}  e4 {[%clk 0:02:05]} 16. bxc6 {[%clk 0:01:58]}  bxc6 {[%clk 0:02:04]} 17. Be2 {[%clk 0:01:39]}  exf3 {[%clk 0:02:02]} 18. Nxf3 {[%clk 0:01:40]}  Ne4 {[%clk 0:01:58]} 19. Bd4 {[%clk 0:01:40]}  Bg4 {[%clk 0:01:53]} 20. Qa1 {[%clk 0:01:28]}  Rb8 {[%clk 0:01:32]} 21. O-O {[%clk 0:01:22]}  Bxf3 {[%clk 0:01:20]} 22. Bxf3 {[%clk 0:01:09]}  Nd2 {[%clk 0:01:20]} 23. Rd1 {[%clk 0:00:44]}  Nxf3+ {[%clk 0:01:15]} 24. gxf3 {[%clk 0:00:45]}  Qg5+ {[%clk 0:00:56]} 25. Kf1 {[%clk 0:00:45]}  h5 {[%clk 0:00:44]} 26. Ke2 {[%clk 0:00:37]}  f6 {[%clk 0:00:39]} 27. Qa7 {[%clk 0:00:31]}  Rc8 {[%clk 0:00:35]} 28. Qb7 {[%clk 0:00:23]}  Qf5 {[%clk 0:00:35]} 29. Qxc6 {[%clk 0:00:16]}  Qc2+ {[%clk 0:00:31]} 30. Rd2 {[%clk 0:00:13]}  Qxd2+ {[%clk 0:00:31]} 31. Kxd2 {[%clk 0:00:09]}  Ba5+ {[%clk 0:00:31]} 0-1


[Site "https://www.chess.com"]

[Event "Titled Tuesday Blitz August 08 Late 2023"]
[White "Deng, Henry"]
[Black "littlepinkyboy"]
[WhiteFideId "30965454"]
[WhiteElo "2577"]
[BlackElo "2413"]
[Result "1/2-1/2"]
[Round "6"]
[TimeControl "180+1"]
[Date "2023.08.08"]
[WhiteClock "0:01:15"]
[BlackClock "0:00:03"]
[Board "89"]

1. b3 {[%clk 0:03:00]}  Nf6 {[%clk 0:02:55]} 2. Bb2 {[%clk 0:03:00]}  g6 {[%clk 0:02:56]} 3. Nf3 {[%clk 0:02:59]}  Bg7 {[%clk 0:02:56]} 4. c4 {[%clk 0:02:56]}  O-O {[%clk 0:02:57]} 5. Nc3 {[%clk 0:02:56]}  c6 {[%clk 0:02:57]} 6. e3 {[%clk 0:02:56]}  d5 {[%clk 0:02:58]} 7. Be2 {[%clk 0:02:56]}  Nbd7 {[%clk 0:02:57]} 8. O-O {[%clk 0:02:56]}  b6 {[%clk 0:02:57]} 9. d4 {[%clk 0:02:56]}  Bb7 {[%clk 0:02:57]} 10. Bd3 {[%clk 0:02:56]}  Re8 {[%clk 0:02:54]} 11. Qe2 {[%clk 0:02:52]}  c5 {[%clk 0:02:51]} 12. cxd5 {[%clk 0:02:51]}  Nxd5 {[%clk 0:02:52]} 13. Nxd5 {[%clk 0:02:51]}  Bxd5 {[%clk 0:02:53]} 14. Rad1 {[%clk 0:02:47]}  Qc7 {[%clk 0:02:49]} 15. dxc5 {[%clk 0:02:41]}  Nxc5 {[%clk 0:02:50]} 16. Bb5 {[%clk 0:02:41]}  Bxf3 {[%clk 0:02:46]} 17. gxf3 {[%clk 0:02:37]}  Red8 {[%clk 0:02:44]} 18. Bxg7 {[%clk 0:02:36]}  Kxg7 {[%clk 0:02:44]} 19. Kg2 {[%clk 0:02:34]}  Rxd1 {[%clk 0:02:43]} 20. Rxd1 {[%clk 0:02:34]}  Rd8 {[%clk 0:02:43]} 21. Qb2+ {[%clk 0:02:33]}  Kg8 {[%clk 0:02:40]} 22. Rxd8+ {[%clk 0:02:27]}  Qxd8 {[%clk 0:02:41]} 23. Bc4 {[%clk 0:02:27]}  Qd6 {[%clk 0:02:36]} 24. b4 {[%clk 0:02:24]}  Nd3 {[%clk 0:01:52]} 25. Bxd3 {[%clk 0:02:22]}  Qxd3 {[%clk 0:01:53]} 26. Qe5 {[%clk 0:02:22]}  Qd7 {[%clk 0:01:48]} 27. a3 {[%clk 0:02:12]}  f6 {[%clk 0:01:39]} 28. Qe4 {[%clk 0:02:11]}  Kg7 {[%clk 0:01:36]} 29. Qa8 {[%clk 0:02:10]}  e5 {[%clk 0:01:31]} 30. Qe4 {[%clk 0:02:07]}  Kf7 {[%clk 0:01:19]} 31. Qc4+ {[%clk 0:02:07]}  Kg7 {[%clk 0:01:19]} 32. Qa6 {[%clk 0:02:05]}  Qc7 {[%clk 0:01:15]} 33. Qa4 {[%clk 0:02:03]}  Kf7 {[%clk 0:01:10]} 34. Qb3+ {[%clk 0:02:01]}  Kg7 {[%clk 0:01:09]} 35. Qe6 {[%clk 0:02:02]}  Qd8 {[%clk 0:01:03]} 36. h3 {[%clk 0:01:56]}  Qc7 {[%clk 0:01:00]} 37. Qd5 {[%clk 0:01:53]}  Qe7 {[%clk 0:00:56]} 38. Qe4 {[%clk 0:01:49]}  Kh6 {[%clk 0:00:53]} 39. f4 {[%clk 0:01:48]}  Qd6 {[%clk 0:00:41]} 40. fxe5 {[%clk 0:01:46]}  fxe5 {[%clk 0:00:42]} 41. Qb7 {[%clk 0:01:42]}  Qe6 {[%clk 0:00:38]} 42. Qxa7 {[%clk 0:01:38]}  Qd5+ {[%clk 0:00:38]} 43. Kg3 {[%clk 0:01:36]}  Qh1 {[%clk 0:00:04]} 44. Qxb6 {[%clk 0:01:33]}  Qg1+ {[%clk 0:00:04]} 45. Kf3 {[%clk 0:01:33]}  Qh1+ {[%clk 0:00:04]} 46. Ke2 {[%clk 0:01:33]}  Qxh3 {[%clk 0:00:04]} 47. Qf6 {[%clk 0:01:33]}  Qg4+ {[%clk 0:00:04]} 48. Ke1 {[%clk 0:01:33]}  Qg1+ {[%clk 0:00:03]} 49. Kd2 {[%clk 0:01:33]}  Qa1 {[%clk 0:00:02]} 50. b5 {[%clk 0:01:27]}  Qb2+ {[%clk 0:00:02]} 51. Ke1 {[%clk 0:01:27]}  Qxb5 {[%clk 0:00:02]} 52. Qh4+ {[%clk 0:01:27]}  Kg7 {[%clk 0:00:01]} 53. Qe7+ {[%clk 0:01:28]}  Kh6 {[%clk 0:00:02]} 54. Qd6 {[%clk 0:01:21]}  Qa5+ {[%clk 0:00:02]} 55. Kf1 {[%clk 0:01:21]}  Qb5+ {[%clk 0:00:02]} 56. Kg1 {[%clk 0:01:22]}  Kg5 {[%clk 0:00:02]} 57. Qe7+ {[%clk 0:01:20]}  Kh6 {[%clk 0:00:03]} 58. Qh4+ {[%clk 0:01:21]}  Kg7 {[%clk 0:00:03]} 59. a4 {[%clk 0:01:21]}  Qb1+ {[%clk 0:00:03]} 60. Kh2 {[%clk 0:01:21]}  Qb7 {[%clk 0:00:02]} 61. a5 {[%clk 0:01:21]}  Qa7 {[%clk 0:00:01]} 62. Qb4 {[%clk 0:01:20]}  Kh6 {[%clk 0:00:01]} 63. Qb6 {[%clk 0:01:21]}  Qf7 {[%clk 0:00:01]} 64. Kg2 {[%clk 0:01:19]}  Qd5+ {[%clk 0:00:02]} 65. Kg1 {[%clk 0:01:18]}  Qd1+ {[%clk 0:00:02]} 66. Kh2 {[%clk 0:01:18]}  Qh5+ {[%clk 0:00:02]} 67. Kg3 {[%clk 0:01:17]}  Qg5+ {[%clk 0:00:03]} 68. Kf3 {[%clk 0:01:18]}  Qf5+ {[%clk 0:00:02]} 69. Ke2 {[%clk 0:01:13]}  Qc2+ {[%clk 0:00:03]} 70. Kf1 {[%clk 0:01:14]}  Qd1+ {[%clk 0:00:03]} 71. Kg2 {[%clk 0:01:15]}  Qg4+ {[%clk 0:00:03]} 72. Kh2 {[%clk 0:01:15]}  Qh5+ {[%clk 0:00:04]} 73. Kg3 {[%clk 0:01:14]}  Qg5+ {[%clk 0:00:04]} 74. Kh3 {[%clk 0:01:14]}  Qh5+ {[%clk 0:00:03]} 75. Kg3 {[%clk 0:01:15]} 1/2-1/2


[Site "https://www.chess.com"]

[Event "Titled Tuesday Blitz August 08 Late 2023"]
[White "Pinto, Daniel"]
[Black "Adan Bermudez, Sergio"]
[WhiteFideId "3303144"]
[BlackFideId "2292726"]
[WhiteElo "2411"]
[BlackElo "2570"]
[Result "1-0"]
[Round "6"]
[TimeControl "180+1"]
[Date "2023.08.08"]
[WhiteClock "0:00:07"]
[BlackClock "0:00:00"]
[Board "90"]

1. e4 {[%clk 0:03:00]}  d6 {[%clk 0:02:57]} 2. d4 {[%clk 0:02:59]}  Nf6 {[%clk 0:02:58]} 3. Nc3 {[%clk 0:02:59]}  e5 {[%clk 0:02:58]} 4. Nf3 {[%clk 0:03:00]}  Nbd7 {[%clk 0:02:58]} 5. Bc4 {[%clk 0:03:00]}  h6 {[%clk 0:02:59]} 6. O-O {[%clk 0:03:00]}  Be7 {[%clk 0:02:59]} 7. a4 {[%clk 0:03:00]}  c6 {[%clk 0:02:58]} 8. a5 {[%clk 0:03:00]}  Qc7 {[%clk 0:02:59]} 9. Qe2 {[%clk 0:02:48]}  Nf8 {[%clk 0:02:58]} 10. dxe5 {[%clk 0:02:46]}  dxe5 {[%clk 0:02:57]} 11. Nh4 {[%clk 0:02:33]}  g6 {[%clk 0:02:51]} 12. f4 {[%clk 0:02:27]}  Ng4 {[%clk 0:02:38]} 13. f5 {[%clk 0:02:07]}  Bxh4 {[%clk 0:02:02]} 14. Qxg4 {[%clk 0:02:03]}  Qe7 {[%clk 0:01:56]} 15. Qe2 {[%clk 0:01:51]}  gxf5 {[%clk 0:01:30]} 16. exf5 {[%clk 0:01:48]}  Nd7 {[%clk 0:01:26]} 17. Be3 {[%clk 0:01:41]}  Bg5 {[%clk 0:01:16]} 18. Ne4 {[%clk 0:01:11]}  Bxe3+ {[%clk 0:01:08]} 19. Qxe3 {[%clk 0:01:11]}  Nf6 {[%clk 0:01:09]} 20. Nxf6+ {[%clk 0:01:04]}  Qxf6 {[%clk 0:01:10]} 21. Rae1 {[%clk 0:01:00]}  Kf8 {[%clk 0:00:52]} 22. Qc5+ {[%clk 0:00:40]}  Kg7 {[%clk 0:00:48]} 23. Rxe5 {[%clk 0:00:39]}  Bd7 {[%clk 0:00:37]} 24. Re7 {[%clk 0:00:36]}  b6 {[%clk 0:00:37]} 25. Qe3 {[%clk 0:00:21]}  Be8 {[%clk 0:00:16]} 26. c3 {[%clk 0:00:10]}  Rd8 {[%clk 0:00:12]} 27. Re1 {[%clk 0:00:09]}  bxa5 {[%clk 0:00:12]} 28. Qg3+ {[%clk 0:00:09]}  Kf8 {[%clk 0:00:12]} 29. Qc7 {[%clk 0:00:07]}  Rg8 {[%clk 0:00:00]} 30. Qxd8 {[%clk 0:00:07]} 1-0


[Site "https://www.chess.com"]

[Event "Titled Tuesday Blitz August 08 Late 2023"]
[White "Rabiega, Robert"]
[Black "Shapiro, Viktor"]
[WhiteFideId "4601475"]
[BlackFideId "4175700"]
[WhiteElo "2364"]
[BlackElo "2561"]
[Result "1-0"]
[Round "6"]
[TimeControl "180+1"]
[Date "2023.08.08"]
[WhiteClock "0:00:10"]
[BlackClock "0:00:06"]
[Board "92"]

1. e4 {[%clk 0:03:00]}  Nf6 {[%clk 0:02:59]} 2. e5 {[%clk 0:02:54]}  Nd5 {[%clk 0:02:59]} 3. d4 {[%clk 0:02:54]}  d6 {[%clk 0:03:00]} 4. exd6 {[%clk 0:02:54]}  cxd6 {[%clk 0:02:59]} 5. Nf3 {[%clk 0:02:52]}  Bg4 {[%clk 0:02:58]} 6. Be2 {[%clk 0:02:53]}  e6 {[%clk 0:02:58]} 7. O-O {[%clk 0:02:53]}  Be7 {[%clk 0:02:59]} 8. h3 {[%clk 0:02:50]}  Bh5 {[%clk 0:02:59]} 9. c4 {[%clk 0:02:49]}  Nb6 {[%clk 0:02:58]} 10. b3 {[%clk 0:02:47]}  O-O {[%clk 0:02:58]} 11. Bb2 {[%clk 0:02:46]}  d5 {[%clk 0:02:58]} 12. c5 {[%clk 0:02:38]}  Bxf3 {[%clk 0:02:58]} 13. Bxf3 {[%clk 0:02:38]}  Nc8 {[%clk 0:02:59]} 14. b4 {[%clk 0:02:34]}  Nc6 {[%clk 0:02:59]} 15. b5 {[%clk 0:02:33]}  Na5 {[%clk 0:03:00]} 16. Nd2 {[%clk 0:02:32]}  Bf6 {[%clk 0:03:00]} 17. Re1 {[%clk 0:02:25]}  Ne7 {[%clk 0:03:00]} 18. a4 {[%clk 0:02:25]}  Nf5 {[%clk 0:02:59]} 19. Nf1 {[%clk 0:02:03]}  Rc8 {[%clk 0:02:58]} 20. Ne3 {[%clk 0:01:58]}  Nxe3 {[%clk 0:02:46]} 21. fxe3 {[%clk 0:01:57]}  Nc4 {[%clk 0:02:37]} 22. Bc3 {[%clk 0:01:56]}  b6 {[%clk 0:02:36]} 23. c6 {[%clk 0:01:52]}  Bg5 {[%clk 0:02:27]} 24. Qd3 {[%clk 0:01:51]}  f5 {[%clk 0:02:26]} 25. Bd1 {[%clk 0:01:34]}  Rf6 {[%clk 0:02:14]} 26. Bb3 {[%clk 0:01:31]}  Nd6 {[%clk 0:02:14]} 27. a5 {[%clk 0:01:27]}  Ne4 {[%clk 0:02:14]} 28. axb6 {[%clk 0:01:21]}  axb6 {[%clk 0:02:14]} 29. Ra7 {[%clk 0:01:19]}  Bh4 {[%clk 0:02:13]} 30. Rf1 {[%clk 0:01:18]}  Rg6 {[%clk 0:02:11]} 31. Bb4 {[%clk 0:01:11]}  Qg5 {[%clk 0:02:10]} 32. Ra2 {[%clk 0:00:44]}  Qg3 {[%clk 0:01:53]} 33. Be1 {[%clk 0:00:41]}  Qg5 {[%clk 0:01:49]} 34. Bd1 {[%clk 0:00:33]}  Bg3 {[%clk 0:01:40]} 35. Bf3 {[%clk 0:00:30]}  Bd6 {[%clk 0:01:34]} 36. Ra6 {[%clk 0:00:28]}  Bc7 {[%clk 0:01:34]} 37. Ra7 {[%clk 0:00:28]}  Qd8 {[%clk 0:01:27]} 38. Bxe4 {[%clk 0:00:28]}  fxe4 {[%clk 0:01:18]} 39. Qe2 {[%clk 0:00:28]}  Qd6 {[%clk 0:01:15]} 40. g3 {[%clk 0:00:19]}  Rxg3+ {[%clk 0:01:02]} 41. Bxg3 {[%clk 0:00:18]}  Qxg3+ {[%clk 0:01:02]} 42. Qg2 {[%clk 0:00:18]}  Qxe3+ {[%clk 0:01:02]} 43. Kh1 {[%clk 0:00:18]}  Qxd4 {[%clk 0:01:01]} 44. Rg1 {[%clk 0:00:17]}  e3 {[%clk 0:00:57]} 45. Qg4 {[%clk 0:00:11]}  Qxg4 {[%clk 0:00:56]} 46. Rxg4 {[%clk 0:00:12]}  Be5 {[%clk 0:00:54]} 47. Kg2 {[%clk 0:00:12]}  d4 {[%clk 0:00:53]} 48. Kf3 {[%clk 0:00:12]}  h5 {[%clk 0:00:49]} 49. Re4 {[%clk 0:00:12]}  Bf6 {[%clk 0:00:47]} 50. Rxe6 {[%clk 0:00:12]}  Rf8 {[%clk 0:00:45]} 51. Ke2 {[%clk 0:00:12]}  Rd8 {[%clk 0:00:34]} 52. Kd3 {[%clk 0:00:11]}  Rd5 {[%clk 0:00:14]} 53. c7 {[%clk 0:00:11]}  Rc5 {[%clk 0:00:14]} 54. Rxb6 {[%clk 0:00:10]}  Kh7 {[%clk 0:00:06]} 55. Rc6 {[%clk 0:00:10]} 1-0


[Site "https://www.chess.com"]